bitfinex/quotes_BTCUSD_20241206
["timestamp","ask_amount","ask_price","bid_price","bid_amount"]
[1733461144734,0.07091231,97920.0,97905.0,0.09094]
[1733461144735,0.204275,97907.0,97905.0,0.09094]
[1733461145377,0.40855,97907.0,97904.0,0.16794]
[1733461145579,0.40855,97907.0,97904.0,0.077]
[1733461146198,0.40855,97907.0,97904.0,0.16794]
[1733461146613,0.204275,97907.0,97905.0,0.09094]
[1733461147364,0.204275,97907.0,97904.0,0.21341]
[1733461147568,0.204275,97907.0,97906.0,0.0911586]
[1733461148751,0.204275,97907.0,97905.0,0.0911586]
[1733461149125,0.204275,97907.0,97906.0,0.0911586]
[1733461149526,0.204275,97907.0,97905.0,0.0911586]
[1733461149830,0.204275,97907.0,97906.0,0.0911586]
[1733461150200,0.40855,97907.0,97904.0,0.21341]
[1733461150393,0.204275,97907.0,97906.0,0.0911337]
[1733461151022,0.204275,97907.0,97906.0,0.09113153]
[1733461151225,0.204275,97907.0,97905.0,0.15564039]
[1733461151645,0.204275,97907.0,97905.0,0.01923039]
[1733461151987,0.204275,97907.0,97905.0,0.15564039]
[1733461152844,0.204275,97907.0,97905.0,0.01923039]
[1733461154102,0.204275,97907.0,97904.0,0.077]
[1733461154256,0.204275,97907.0,97905.0,0.01923039]
[1733461154459,0.204275,97907.0,97904.0,0.077]
[1733461154672,0.204275,97907.0,97905.0,0.01923039]
[1733461154851,0.204277,97906.0,97905.0,0.01923039]
[1733461157397,0.204288,97901.0,97900.0,0.1381412]
[1733461157586,0.204288,97901.0,97900.0,0.0017312]
[1733461159785,0.30931954,97901.0,97900.0,0.0017312]
[1733461160000,0.73811709,97901.0,97900.0,0.0017312]
[1733461160396,0.81921709,97901.0,97900.0,0.0017312]
[1733461162050,0.81921709,97901.0,97870.0,8e-07]
[1733461162051,0.204329,97881.0,97870.0,8e-07]
[1733461162285,0.30936054,97881.0,97870.0,8e-07]
[1733461163430,0.30936054,97881.0,97880.0,0.00185525]
[1733461163882,0.39883889,97881.0,97880.0,0.00185525]
[1733461164519,0.30936054,97881.0,97880.0,0.00185525]
[1733461168674,0.32947563,97881.0,97880.0,0.00185525]
[1733461169169,0.30936054,97881.0,97880.0,0.00185525]
[1733461169873,0.204329,97881.0,97880.0,0.00185525]
[1733461186904,0.204329,97881.0,97880.0,0.12725525]
[1733461187331,0.204329,97881.0,97880.0,0.00185525]
[1733461188764,0.204323,97884.0,97880.0,0.00185525]
[1733461189893,0.204313,97889.0,97880.0,0.00185525]
[1733461190120,0.204313,97889.0,97883.0,0.01923039]
[1733461190871,0.0008656,97890.0,97888.0,0.01923039]
[1733461191055,0.0008656,97890.0,97889.0,0.0784]
[1733461191974,0.0008656,97890.0,97889.0,0.09763039]
[1733461195943,0.0008656,97890.0,97889.0,0.01923039]
[1733461196407,0.0008656,97890.0,97888.0,0.01923039]
[1733461196620,0.0008656,97890.0,97889.0,0.01923039]
[1733461196835,0.204313,97889.0,97888.0,0.01923039]
[1733461198204,0.204313,97889.0,97874.0,0.0465]
[1733461198205,0.204319,97886.0,97881.0,0.01923039]
[1733461198419,0.204325,97883.0,97879.0,0.01923039]
[1733461198658,0.204325,97883.0,97881.0,0.01923039]
[1733461198887,0.204325,97883.0,97869.0,0.07942167]
[1733461198888,0.204325,97883.0,97880.0,0.02108564]
[1733461199133,0.204325,97883.0,97882.0,0.01923039]
[1733461199819,0.204325,97883.0,97880.0,0.00185525]
[1733461199820,0.40865,97883.0,97880.0,0.00185525]
[1733461203287,0.204325,97883.0,97881.0,0.01923039]
[1733461203461,0.204325,97883.0,97882.0,0.01923039]
[1733461203665,0.204325,97883.0,97880.0,0.00185525]
[1733461203869,0.204329,97881.0,97880.0,0.00185525]
[1733461208498,0.30936054,97881.0,97880.0,0.00185525]
[1733461208931,0.34942062,97881.0,97880.0,0.00185525]
[1733461209171,0.42642062,97881.0,97880.0,0.00185525]
[1733461209633,0.38636054,97881.0,97880.0,0.00185525]
[1733461214543,0.68636054,97881.0,97880.0,0.00185525]
[1733461219859,0.68636054,97881.0,97880.0,2.5e-07]
[1733461226659,0.73635995,97881.0,97880.0,2.5e-07]
[1733461228484,0.73635995,97881.0,97880.0,4.5e-07]
[1733461228631,0.84125487,97881.0,97880.0,4.5e-07]
[1733461229684,0.78585995,97881.0,97880.0,4.5e-07]
[1733461230468,0.81662956,97881.0,97880.0,4.5e-07]
[1733461231743,0.8219526,97881.0,97880.0,4.5e-07]
[1733461239624,0.70894202,97860.0,97859.0,0.001057]
[1733461239827,0.81397356,97860.0,97859.0,0.00111625]
[1733461240024,0.91580782,97860.0,97859.0,0.00111625]
[1733461240439,0.81397356,97860.0,97859.0,2.5e-07]
[1733461241266,1.12053356,97860.0,97859.0,2.5e-07]
[1733461242619,0.55441241,97841.0,97840.0,5e-08]
[1733461242823,0.65944395,97841.0,97840.0,0.00058089]
[1733461243031,0.96600395,97841.0,97840.0,0.00058089]
[1733461244836,0.96600395,97841.0,97840.0,8.9e-07]
[1733461250195,0.98631548,97841.0,97840.0,8.9e-07]
[1733461251602,0.55443341,97831.0,97830.0,9e-08]
[1733461251796,1.03938634,97831.0,97830.0,9e-08]
[1733461252202,1.11648634,97831.0,97830.0,9e-08]
[1733461252404,1.11648634,97831.0,97820.0,0.0017302]
[1733461252405,0.504455,97821.0,97820.0,2.9e-07]
[1733461252632,0.55447441,97811.0,97810.0,8.9e-07]
[1733461252829,0.65950595,97811.0,97810.0,8.9e-07]
[1733461253955,0.6804814,97811.0,97810.0,8.9e-07]
[1733461254790,0.8304814,97811.0,97810.0,8.9e-07]
[1733461254990,0.78048199,97811.0,97810.0,8.9e-07]
[1733461255541,1.1370414,97811.0,97810.0,8.9e-07]
[1733461255745,1.18867763,97811.0,97810.0,8.9e-07]
[1733461256270,1.1370414,97811.0,97810.0,8.9e-07]
[1733461263339,0.61664667,97811.0,97810.0,0.07990089]
[1733461268467,0.61664667,97811.0,97810.0,8.9e-07]
[1733461269066,0.66664608,97811.0,97810.0,8.9e-07]
[1733461269452,0.90375779,97811.0,97810.0,8.9e-07]
[1733461271158,0.81664608,97811.0,97810.0,8.9e-07]
[1733461275356,0.76664667,97811.0,97810.0,8.9e-07]
[1733461277550,1.11664608,97811.0,97810.0,8.9e-07]
[1733461283351,1.11664608,97811.0,97800.0,8.7e-07]
[1733461283352,0.504496,97801.0,97800.0,8.7e-07]
[1733461283593,0.60952754,97801.0,97800.0,8.7e-07]
[1733461284242,0.91608754,97801.0,97800.0,8.7e-07]
[1733461284712,0.99628754,97801.0,97800.0,8.7e-07]
[1733461284912,0.91608754,97801.0,97800.0,8.7e-07]
[1733461290676,0.93685087,97801.0,97800.0,8.7e-07]
[1733461303146,0.63685087,97801.0,97800.0,8.7e-07]
[1733461303406,0.93685087,97801.0,97800.0,8.7e-07]
[1733461305734,0.93435087,97801.0,97800.0,8.7e-07]
[1733461307890,0.508556,97801.0,97800.0,0.14403126]
[1733461310475,0.61358754,97801.0,97800.0,0.12480087]
[1733461310674,0.61358754,97801.0,97800.0,8.7e-07]
[1733461316246,0.508556,97801.0,97800.0,0.14403126]
[1733461319958,0.61358754,97801.0,97800.0,8.7e-07]
[1733461320386,0.61358754,97801.0,97800.0,0.01923126]
[1733461321918,0.508556,97801.0,97800.0,0.01923126]
[1733461322326,0.508556,97801.0,97800.0,0.09603126]
[1733461328220,0.508556,97801.0,97800.0,0.01923126]
[1733461328650,0.61358754,97801.0,97800.0,0.01923126]
[1733461328843,0.61358754,97801.0,97800.0,8.7e-07]
[1733461328844,0.91358754,97801.0,97800.0,8.7e-07]
[1733461332955,1.083642,97801.0,97800.0,8.7e-07]
[1733461338414,0.10503154,97801.0,97800.0,8.7e-07]
[1733461339606,0.12530293,97801.0,97800.0,8.7e-07]
[1733461339860,0.12504666,97801.0,97800.0,8.7e-07]
[1733461340306,0.32954266,97801.0,97800.0,8.7e-07]
[1733461342517,0.63629266,97801.0,97800.0,8.7e-07]
[1733461360265,0.78629266,97801.0,97800.0,8.7e-07]
[1733461363684,0.63629266,97801.0,97800.0,8.7e-07]
[1733461372231,0.62143898,97801.0,97800.0,8.7e-07]
[1733461375465,0.60116759,97801.0,97800.0,8.7e-07]
[1733461391134,0.60116759,97801.0,97800.0,8.7e-07]
[1733461394003,0.60116759,97801.0,97800.0,0.00400087]
[1733461407989,0.67676759,97801.0,97800.0,0.00400087]
[1733461408455,0.60116759,97801.0,97800.0,0.00400087]
[1733461409391,0.60116759,97801.0,97800.0,8.7e-07]
[1733461409838,0.64626759,97801.0,97800.0,8.7e-07]
[1733461410054,0.72186759,97801.0,97800.0,8.7e-07]
[1733461414177,0.72186759,97801.0,97790.0,0.00164916]
[1733461414178,0.51737159,97801.0,97790.0,0.00164916]
[1733461414406,0.204517,97791.0,97790.0,0.00164916]
[1733461414816,0.511267,97791.0,97790.0,0.00164916]
[1733461418746,0.53184858,97791.0,97790.0,0.00164916]
[1733461421451,0.53184858,97791.0,97790.0,1.6e-07]
[1733461432403,0.53184858,97791.0,97790.0,0.01923055]
[1733461432843,0.511267,97791.0,97790.0,1.6e-07]
[1733461434320,0.204538,97781.0,97780.0,1.6e-07]
[1733461435726,0.20511777,97781.0,97780.0,1.6e-07]
[1733461439483,0.51186777,97781.0,97780.0,1.6e-07]
[1733461440399,0.56305101,97781.0,97780.0,1.6e-07]
[1733461440601,0.51186777,97781.0,97780.0,1.6e-07]
[1733461445431,0.30732977,97781.0,97776.0,1.6e-07]
[1733461445602,0.204543,97779.0,97776.0,1.6e-07]
[1733461445951,0.409086,97779.0,97776.0,1.6e-07]
[1733461448392,0.715836,97779.0,97776.0,1.6e-07]
[1733461452262,0.02015538,97777.0,97776.0,1.6e-07]
[1733461452694,0.32690538,97777.0,97776.0,1.6e-07]
[1733461453327,0.47690538,97777.0,97776.0,1.6e-07]
[1733461457541,0.47690538,97777.0,97758.0,0.1284]
[1733461457542,0.20458,97761.0,97760.0,0.02096239]
[1733461457740,0.20458,97761.0,97760.0,0.12701664]
[1733461458346,0.51133,97761.0,97760.0,0.12701664]
[1733461472446,0.51133,97761.0,97760.0,0.21847105]
[1733461472659,0.51133,97761.0,97760.0,0.21744834]
[1733461475277,0.51133,97761.0,97760.0,0.12599393]
[1733461475508,0.51133,97761.0,97760.0,0.1270167]
[1733461478458,0.51133,97761.0,97760.0,0.46489779]
[1733461478663,0.51133,97761.0,97760.0,0.46387502]
[1733461495516,0.51133,97761.0,97760.0,0.12599393]
[1733461495636,0.51133,97761.0,97760.0,0.12701671]
[1733461495852,0.51133,97761.0,97760.0,0.21853771]
[1733461496062,0.51133,97761.0,97760.0,0.21751493]
[1733461497892,0.58673,97761.0,97758.0,0.050604]
[1733461498098,0.58673,97761.0,97754.0,0.01116692]
[1733461498099,0.204588,97757.0,97754.0,0.01116692]
[1733461498311,0.20461,97747.0,97735.0,0.10801127]
[1733461498509,0.20461,97747.0,97718.0,0.0759]
[1733461498510,0.0464,97744.0,97713.0,0.18290883]
[1733461498753,0.0464,97744.0,97710.0,0.23038329]
[1733461498754,0.204681,97713.0,97710.0,0.0017326]
[1733461499132,0.204685,97711.0,97710.0,0.0017326]
[1733461499360,0.3754,97701.0,97689.0,1e-07]
[1733461499531,0.21348588,97699.0,97689.0,1e-07]
[1733461499735,0.204729,97690.0,97689.0,1e-07]
[1733461499936,0.34295497,97690.0,97689.0,1e-07]
[1733461500304,0.64970497,97690.0,97689.0,4e-07]
[1733461502164,0.204777,97667.0,97666.0,0.00108376]
[1733461502383,0.204777,97667.0,97666.0,0.00064218]
[1733461502598,0.511527,97667.0,97666.0,0.00064218]
[1733461504430,0.53158832,97667.0,97666.0,0.00064218]
[1733461505115,0.71701986,97667.0,97666.0,0.00064218]
[1733461505515,0.75021429,97667.0,97666.0,0.00064218]
[1733461507897,0.90021429,97667.0,97666.0,0.00064218]
[1733461509238,0.92952446,97667.0,97666.0,0.00064218]
[1733461509643,1.03441938,97667.0,97666.0,0.00064218]
[1733461510044,0.92952446,97667.0,97666.0,0.00064218]
[1733461511174,0.77952446,97667.0,97666.0,0.00064218]
[1733461511376,0.92952446,97667.0,97666.0,0.00064218]
[1733461511781,0.53158832,97667.0,97666.0,0.00064218]
[1733461511992,0.32681132,97667.0,97666.0,0.00064218]
[1733461512207,0.30675,97667.0,97666.0,0.00064218]
[1733461513491,0.204772,97670.0,97666.0,0.00064218]
[1733461513695,0.204769,97671.0,97666.0,0.00064218]
[1733461513902,0.0008664,97690.0,97667.0,0.10503154]
[1733461514102,0.00057916,97671.0,97667.0,0.10503154]
[1733461517362,0.00057916,97671.0,97670.0,0.05]
[1733461517556,0.00057916,97671.0,97670.0,0.15503154]
[1733461518015,0.00057916,97671.0,97670.0,0.30503154]
[1733461523580,0.10964607,97680.0,97679.0,0.05]
[1733461523775,0.0008667,97680.0,97679.0,0.05]
[1733461524420,0.0008667,97680.0,97679.0,0.15503154]
[1733461524878,0.0008664,97690.0,97689.0,0.05]
[1733461525108,0.0008664,97690.0,97689.0,0.30503154]
[1733461525861,0.10877937,97720.0,97707.0,0.05]
[1733461526062,0.10877937,97720.0,97709.0,0.1307]
[1733461526289,0.10877937,97720.0,97710.0,0.10503154]
[1733461526487,0.10877937,97720.0,97710.0,0.15503154]
[1733461526965,0.10877937,97730.0,97718.0,0.152334]
[1733461527114,0.10877937,97740.0,97724.0,0.05]
[1733461527334,0.10877937,97740.0,97726.0,0.05]
[1733461527535,0.10877937,97740.0,97728.0,0.05]
[1733461527736,0.10877937,97740.0,97729.0,0.15503154]
[1733461527914,0.10877937,97740.0,97730.0,0.05]
[1733461528116,0.10877937,97740.0,97720.0,0.15]
[1733461528117,0.10877937,97750.0,97741.0,0.05]
[1733461528318,0.10877937,97750.0,97742.0,0.10503154]
[1733461528527,0.10877937,97752.0,97742.0,0.10503154]
[1733461529102,0.10877937,97760.0,97747.0,0.05]
[1733461529301,0.10877937,97752.0,97747.0,0.15503154]
[1733461529839,0.0008668,97770.0,97749.0,0.15]
[1733461530049,0.0008668,97770.0,97769.0,0.05]
[1733461530273,0.0008668,97770.0,97769.0,0.38573154]
[1733461532327,0.0008668,97770.0,97752.0,0.2]
[1733461532563,0.10877937,97762.0,97754.0,0.15]
[1733461532784,0.20457,97766.0,97756.0,0.15]
[1733461532997,0.20457,97766.0,97763.0,0.05]
[1733461533220,0.01,97767.0,97763.0,0.05]
[1733461535097,0.01,97767.0,97754.0,0.102297]
[1733461535098,0.01,97767.0,97766.0,0.05]
[1733461535305,0.01,97767.0,97766.0,0.30503154]
[1733461535712,0.0008668,97770.0,97769.0,0.05]
[1733461536090,0.0008668,97770.0,97769.0,0.35503154]
[1733461538485,0.0008656,97780.0,97779.0,0.05]
[1733461538690,0.0008656,97780.0,97779.0,0.30503154]
[1733461539643,0.00144548,97780.0,97779.0,0.30503154]
[1733461540889,0.204553,97774.0,97766.0,0.05]
[1733461541102,0.204553,97774.0,97768.0,0.05]
[1733461541309,0.204553,97774.0,97769.0,0.10503154]
[1733461541530,0.204553,97774.0,97770.0,0.05]
[1733461541739,0.204553,97774.0,97771.0,0.10503154]
[1733461541965,0.409106,97774.0,97771.0,0.10503154]
[1733461542185,0.204553,97774.0,97767.0,0.05]
[1733461542441,0.11022485,97780.0,97770.0,0.05]
[1733461542649,0.204557,97772.0,97770.0,0.05]
[1733461542892,0.204557,97772.0,97768.0,0.15503154]
[1733461543152,0.11022485,97780.0,97751.0,0.1307]
[1733461543308,0.10877937,97761.0,97752.0,0.10503154]
[1733461543509,0.10877937,97762.0,97752.0,0.10503154]
[1733461543718,0.204544,97778.0,97754.0,0.05]
[1733461543719,0.10877937,97770.0,97754.0,0.05]
[1733461543921,0.00144548,97780.0,97755.0,0.10503154]
[1733461544124,0.204564,97769.0,97760.0,0.05]
[1733461544271,0.204564,97769.0,97761.0,0.10503154]
[1733461544492,0.204574,97764.0,97761.0,0.10503154]
[1733461545105,0.204564,97769.0,97761.0,0.10503154]
[1733461545333,0.204564,97769.0,97763.0,0.05]
[1733461546280,0.0008659,97770.0,97764.0,0.15503154]
[1733461546484,0.0008659,97770.0,97765.0,0.05]
[1733461546659,0.0008659,97770.0,97766.0,0.10503154]
[1733461547913,0.0008659,97770.0,97769.0,0.05]
[1733461548058,0.0008659,97770.0,97769.0,0.25731254]
[1733461551316,0.00144548,97780.0,97779.0,0.05]
[1733461551528,0.00144548,97780.0,97779.0,0.30503154]
[1733461552342,0.00144548,97780.0,97779.0,0.35503154]
[1733461553535,0.0008656,97800.0,97792.0,0.102257]
[1733461553756,0.0008656,97800.0,97793.0,0.10503154]
[1733461554363,0.0008656,97800.0,97794.0,0.102255]
[1733461554704,0.0008656,97800.0,97796.0,0.102253]
[1733461554859,0.0008656,97800.0,97797.0,0.10503154]
[1733461558662,0.10964567,97820.0,97797.0,0.10503154]
[1733461559622,0.0008663,97820.0,97797.0,0.15503154]
[1733461559828,0.0008663,97820.0,97798.0,0.10225]
[1733461560051,0.204461,97818.0,97800.0,0.102249]
[1733461560253,0.204461,97818.0,97801.0,0.10503154]
[1733461560583,0.204472,97813.0,97801.0,0.10503154]
[1733461560787,0.0008663,97820.0,97801.0,0.10503154]
[1733461560788,0.204483,97808.0,97801.0,0.10503154]
[1733461561035,0.204473,97812.0,97801.0,0.10503154]
[1733461561848,0.204475,97811.0,97801.0,0.10503154]
[1733461562662,0.204461,97818.0,97801.0,0.10503154]
[1733461563048,0.10964567,97820.0,97801.0,0.10503154]
[1733461563049,0.10877937,97811.0,97801.0,0.10503154]
[1733461563219,0.40898,97804.0,97801.0,0.10503154]
[1733461563832,0.204503,97798.0,97797.0,0.05]
[1733461563973,0.10877937,97811.0,97783.0,0.05]
[1733461563974,0.10877937,97807.0,97783.0,0.05]
[1733461564202,0.10877937,97807.0,97779.0,0.00057988]
[1733461564203,0.10877937,97799.0,97779.0,0.05057988]
[1733461564405,0.204538,97781.0,97779.0,0.05057988]
[1733461564812,0.204538,97781.0,97779.0,0.00057988]
[1733461578560,0.01,97790.0,97780.0,0.10503154]
[1733461578758,0.01,97790.0,97783.0,0.05]
[1733461578972,0.01,97790.0,97784.0,0.19623329]
[1733461579185,0.01,97790.0,97785.0,0.09120175]
[1733461579409,0.204507,97796.0,97786.0,0.10503154]
[1733461579629,0.204498,97801.0,97786.0,0.10503154]
[1733461579835,0.204517,97792.0,97789.0,0.09120175]
[1733461580042,0.204517,97792.0,97786.0,0.57844778]
[1733461580043,0.204517,97792.0,97790.0,0.10503154]
[1733461581199,0.204532,97784.0,97782.0,0.09120175]
[1733461581405,0.409064,97784.0,97779.0,0.00057988]
[1733461584422,0.409064,97784.0,97780.0,0.10503154]
[1733461586712,0.204525,97788.0,97780.0,0.10503154]
[1733461587633,0.204525,97788.0,97781.0,0.09124557]
[1733461587840,0.40905,97788.0,97782.0,0.10503154]
[1733461589288,0.204516,97792.0,97782.0,0.15503154]
[1733461589526,0.204516,97792.0,97784.0,0.14124557]
[1733461589716,0.204512,97794.0,97785.0,0.19627711]
[1733461590095,0.409024,97794.0,97785.0,0.19627711]
[1733461590314,0.204522,97789.0,97785.0,0.19627711]
[1733461590543,0.204512,97794.0,97785.0,0.19627711]
[1733461590544,0.204524,97788.0,97785.0,0.19627711]
[1733461590818,0.204524,97788.0,97785.0,0.19621828]
[1733461591046,0.204524,97788.0,97785.0,0.10503154]
[1733461591243,0.2167958,97800.0,97779.0,0.00057988]
[1733461591244,0.204536,97782.0,97779.0,0.00057988]
[1733461591974,0.409072,97782.0,97779.0,0.00057988]
[1733461592651,0.204538,97782.0,97779.0,0.10561142]
[1733461592862,0.1083979,97800.0,97781.0,0.09118674]
[1733461593072,0.1083979,97800.0,97779.0,0.00057988]
[1733461593073,0.204528,97786.0,97782.0,0.19623101]
[1733461593283,0.204528,97786.0,97782.0,0.10503154]
[1733461593506,0.204528,97786.0,97782.0,0.19623101]
[1733461593955,0.204528,97786.0,97783.0,0.09119947]
[1733461594432,0.2374551,97836.0,97782.0,0.10503154]
[1733461594433,0.1083979,97810.0,97784.0,0.19623101]
[1733461594687,0.1083979,97810.0,97787.0,0.09119947]
[1733461594911,0.204508,97796.0,97788.0,0.19623101]
[1733461596733,0.204494,97803.0,97790.0,0.09119947]
[1733461596973,0.204494,97803.0,97791.0,0.19623101]
[1733461597211,0.204494,97803.0,97792.0,0.09119947]
[1733461597443,0.204494,97803.0,97793.0,0.10503154]
[1733461597674,0.204494,97803.0,97793.0,0.19623101]
[1733461598343,0.1083979,97810.0,97793.0,0.19623101]
[1733461598563,0.1083979,97810.0,97794.0,0.09119947]
[1733461598785,0.1083979,97810.0,97793.0,0.10503154]
[1733461598786,0.1083979,97810.0,97795.0,0.19623101]
[1733461599003,0.1083979,97810.0,97796.0,0.09119947]
[1733461599219,0.204494,97802.0,97797.0,0.10503154]
[1733461599655,0.40899,97802.0,97797.0,0.10503154]
[1733461599911,0.204511,97795.0,97791.0,0.09119947]
[1733461600133,0.204519,97790.0,97789.0,0.09119947]
[1733461600591,0.204519,97790.0,97788.0,0.09119947]
[1733461600808,0.204519,97790.0,97789.0,0.09119947]
[1733461601261,0.204512,97794.0,97789.0,0.09119947]
[1733461601735,0.204512,97794.0,97790.0,0.09119947]
[1733461601977,0.204513,97793.0,97790.0,0.09119947]
[1733461602185,0.204515,97792.0,97787.0,0.09119947]
[1733461602411,0.204515,97792.0,97788.0,0.05]
[1733461602901,0.204515,97792.0,97788.0,0.09119947]
[1733461603107,0.40903,97792.0,97788.0,0.09119947]
[1733461603362,0.40903,97792.0,97787.0,0.09119947]
[1733461603599,0.40903,97792.0,97788.0,0.09119947]
[1733461603830,0.204498,97800.0,97784.0,0.09119947]
[1733461603831,0.204526,97787.0,97784.0,0.09119947]
[1733461604054,0.204526,97787.0,97783.0,0.09119947]
[1733461604274,0.204526,97787.0,97779.0,0.13735999]
[1733461604275,0.204536,97782.0,97779.0,0.13735999]
[1733461604493,0.204536,97782.0,97781.0,0.09131015]
[1733461605580,0.204536,97782.0,97781.0,0.09133351]
[1733461605581,0.409072,97782.0,97781.0,0.09133351]
[1733461605803,0.409072,97782.0,97780.0,0.0017306]
[1733461610738,0.409072,97782.0,97780.0,0.13879036]
[1733461610959,0.409072,97782.0,97781.0,0.09138053]
[1733461611852,0.409072,97782.0,97780.0,0.0017306]
[1733461611853,0.409072,97782.0,97780.0,0.09311113]
[1733461612499,0.409072,97782.0,97781.0,0.13705976]
[1733461612933,0.409072,97782.0,97780.0,0.0017306]
[1733461612934,0.403958,97782.0,97780.0,0.13879036]
[1733461613382,0.403958,97782.0,97780.0,0.0017306]
[1733461614580,0.403958,97782.0,97781.0,0.09137318]
[1733461615119,0.403958,97782.0,97780.0,0.0017306]
[1733461615517,0.204526,97787.0,97781.0,0.2420913]
[1733461615718,0.204523,97789.0,97785.0,0.09137558]
[1733461615976,0.204524,97788.0,97787.0,0.09137558]
[1733461616177,0.204524,97788.0,97787.0,0.19640712]
[1733461616537,0.204524,97788.0,97787.0,0.10503154]
[1733461617597,0.204524,97788.0,97787.0,0.19640712]
[1733461617778,0.204524,97788.0,97787.0,0.10503154]
[1733461617981,0.204524,97788.0,97785.0,0.09137558]
[1733461618238,0.204524,97788.0,97780.0,0.18447695]
[1733461618239,0.204524,97788.0,97786.0,0.09137558]
[1733461618434,0.204524,97788.0,97785.0,0.09137558]
[1733461618435,0.409048,97788.0,97785.0,0.09137558]
[1733461619050,0.409052,97787.0,97784.0,0.09138735]
[1733461619254,0.409052,97787.0,97780.0,0.0017306]
[1733461619255,0.409052,97787.0,97786.0,0.09138735]
[1733461620657,0.204516,97792.0,97786.0,0.10503154]
[1733461620867,0.204516,97792.0,97788.0,0.09137416]
[1733461621074,0.204516,97792.0,97790.0,0.09137416]
[1733461621275,0.204516,97792.0,97791.0,0.10503154]
[1733461623045,0.204516,97792.0,97791.0,0.1964057]
[1733461628823,0.204516,97792.0,97791.0,0.10503154]
[1733461629024,0.204516,97792.0,97791.0,0.44224092]
[1733461629226,0.204516,97792.0,97791.0,0.33337683]
[1733461629425,0.204516,97792.0,97791.0,0.44224092]
[1733461630469,0.204508,97796.0,97791.0,0.67058745]
[1733461630699,0.204508,97796.0,97795.0,0.18267439]
[1733461630905,0.0008655,97800.0,97795.0,0.18267439]
[1733461630906,0.204501,97799.0,97795.0,0.44224092]
[1733461631077,0.204501,97799.0,97796.0,0.62491367]
[1733461631283,0.204501,97799.0,97797.0,0.51988213]
[1733461631485,0.204501,97799.0,97798.0,0.44224092]
[1733461631705,0.204501,97799.0,97798.0,0.10503154]
[1733461632115,0.204501,97799.0,97798.0,0.24203312]
[1733461632314,0.204501,97799.0,97785.0,0.3239982]
[1733461632315,0.204501,97799.0,97797.0,0.13700158]
[1733461632602,0.204501,97799.0,97798.0,0.09133627]
[1733461632807,0.204501,97799.0,97796.0,0.09133627]
[1733461632808,0.204505,97797.0,97796.0,0.09133627]
[1733461633007,0.204505,97797.0,97788.0,0.22833183]
[1733461633008,0.40901,97797.0,97792.0,0.09133627]
[1733461633214,0.204515,97792.0,97791.0,0.09133627]
[1733461633410,0.40903,97792.0,97790.0,0.09133627]
[1733461633637,0.40903,97792.0,97791.0,0.09133627]
[1733461633757,0.40903,97792.0,97787.0,0.09133627]
[1733461633955,0.40903,97792.0,97785.0,0.13700158]
[1733461633956,0.204526,97787.0,97785.0,0.09133627]
[1733461634387,0.204526,97787.0,97780.0,0.18439607]
[1733461634388,0.204526,97787.0,97781.0,0.09133627]
[1733461634587,0.204526,97787.0,97780.0,0.0017306]
[1733461634588,0.204536,97782.0,97780.0,0.0017306]
[1733461634807,0.204536,97782.0,97780.0,0.13873218]
[1733461635271,0.204536,97782.0,97781.0,0.13700158]
[1733461635476,0.20429912,97782.0,97781.0,0.47429838]
[1733461635690,0.20429912,97782.0,97780.0,0.13873218]
[1733461635898,0.20429912,97782.0,97781.0,0.09137686]
[1733461636074,0.20429912,97782.0,97780.0,0.0017306]
[1733461636075,0.20429912,97782.0,97780.0,0.09310746]
[1733461636304,0.20429912,97782.0,97780.0,0.0017306]
[1733461636536,0.20429912,97782.0,97781.0,0.09137686]
[1733461637155,0.20429912,97782.0,97780.0,0.09310746]
[1733461637474,0.20429912,97782.0,97781.0,0.09137686]
[1733461638088,0.20429912,97782.0,97780.0,0.13873218]
[1733461638432,0.20429912,97782.0,97780.0,0.0017306]
[1733461638630,0.20429912,97782.0,97780.0,0.09311246]
[1733461639046,0.20429912,97782.0,97780.0,0.0017306]
[1733461639447,0.20429912,97782.0,97781.0,0.09137466]
[1733461639719,0.20429912,97782.0,97780.0,0.13873218]
[1733461640040,0.20429912,97782.0,97781.0,0.51994497]
[1733461640187,0.01,97783.0,97781.0,0.62497651]
[1733461640393,0.204514,97793.0,97783.0,0.1269]
[1733461640572,0.204514,97793.0,97791.0,0.09135078]
[1733461640786,0.204514,97793.0,97792.0,0.10503154]
[1733461641085,0.204514,97793.0,97792.0,0.19637687]
[1733461641869,0.204514,97793.0,97792.0,0.44220405]
[1733461642295,0.204514,97793.0,97792.0,0.62489472]
[1733461642595,0.204514,97793.0,97792.0,0.44220405]
[1733461643153,0.204514,97793.0,97792.0,0.57921322]
[1733461643355,0.204514,97793.0,97792.0,0.44220405]
[1733461643987,0.204508,97796.0,97792.0,0.44220405]
[1733461644193,0.204508,97796.0,97793.0,0.47432797]
[1733461644436,0.204508,97796.0,97794.0,0.57935951]
[1733461644639,0.204508,97796.0,97794.0,0.24208478]
[1733461644811,0.204508,97796.0,97795.0,0.33726034]
[1733461645329,0.204508,97796.0,97795.0,0.13703689]
[1733461645747,0.204508,97796.0,97794.0,0.24206843]
[1733461646031,0.204508,97796.0,97795.0,0.13703689]
[1733461646201,0.204508,97796.0,97795.0,0.47421668]
[1733461646411,0.204508,97796.0,97790.0,0.22836334]
[1733461646412,0.409016,97796.0,97792.0,0.09134673]
[1733461646626,0.409016,97796.0,97779.0,0.05057988]
[1733461646627,0.204508,97796.0,97793.0,0.57927612]
[1733461646836,0.204508,97796.0,97794.0,0.33720769]
[1733461647699,0.204508,97796.0,97795.0,0.13700377]
[1733461647951,0.204508,97796.0,97795.0,0.33720769]
[1733461648276,0.409016,97796.0,97795.0,0.13700025]
[1733461648480,0.409016,97796.0,97794.0,0.13700025]
[1733461648682,0.409016,97796.0,97795.0,0.13700025]
[1733461650128,0.409016,97796.0,97795.0,0.47414277]
[1733461650329,0.409016,97796.0,97795.0,0.13698244]
[1733461650709,0.409016,97796.0,97794.0,0.33710523]
[1733461650710,0.409016,97796.0,97794.0,0.13698244]
[1733461650936,0.409016,97796.0,97794.0,0.47408498]
[1733461651135,0.409016,97796.0,97794.0,0.13698244]
[1733461651340,0.409016,97796.0,97794.0,0.0913309]
[1733461651522,0.409016,97796.0,97793.0,0.10503154]
[1733461652008,0.409016,97796.0,97794.0,0.0913309]
[1733461652205,0.409016,97796.0,97793.0,0.24201398]
[1733461652416,0.409016,97796.0,97794.0,0.13698244]
[1733461652626,0.409016,97796.0,97793.0,0.10503154]
[1733461652627,0.409016,97796.0,97795.0,0.5791545]
[1733461653032,0.204501,97799.0,97795.0,0.44217206]
[1733461653246,0.204501,97799.0,97797.0,0.13698156]